bitfinex/quotes_ETHUSD_20240916
["timestamp","ask_amount","ask_price","bid_price","bid_amount"]
[1726461105271,6.65678,2285.1,2284.6,4.37702]
[1726461105503,6.65678,2285.1,2284.6,0.52930921]
[1726461105900,6.65677,2285.1,2284.6,0.52930921]
[1726461106095,6.65677,2285.1,2284.6,4.90640921]
[1726461106788,0.13812919,2285.0,2284.6,4.90640921]
[1726461108272,4.51450919,2285.0,2284.5,7.538673]
[1726461108475,4.51450919,2285.0,2284.5,6.85333]
[1726461109981,4.51450919,2285.0,2284.5,4.37713]
[1726461111043,2.4811,2284.9,2284.5,4.37713]
[1726461111533,2.61969527,2284.9,2284.5,4.37713]
[1726461113236,6.99630527,2284.9,2284.5,4.37713]
[1726461114705,4.37676,2284.8,2284.4,4.3775]
[1726461115136,0.13859527,2284.7,2284.3,8.66338668]
[1726461115520,2.3397,2284.6,2284.3,4.37767]
[1726461115834,2.47875054,2284.6,2284.3,4.37767]
[1726461116403,2.47875054,2284.6,2284.2,10.33493727]
[1726461116645,2.47875054,2284.6,2284.2,10.33490727]
[1726461117238,2.47875054,2284.6,2284.2,5.40711727]
[1726461117442,2.47875054,2284.6,2284.2,4.37779]
[1726461117443,8.69256834,2284.6,2284.2,4.37779]
[1726461121615,8.69256834,2284.6,2284.1,8.60927668]
[1726461122034,4.31542834,2284.6,2284.2,4.37773]
[1726461122341,2.47875054,2284.6,2284.2,4.37773]
[1726461123706,4.31542834,2284.6,2284.2,4.37773]
[1726461124118,2.47875054,2284.6,2284.2,4.37773]
[1726461124346,4.31542834,2284.6,2284.2,4.37773]
[1726461124511,2.47875054,2284.6,2284.2,4.37773]
[1726461125701,4.31542834,2284.6,2284.2,4.37773]
[1726461126603,2.47875054,2284.6,2284.2,4.37773]
[1726461127580,4.31542834,2284.6,2284.2,4.37773]
[1726461127895,2.47875054,2284.6,2284.2,4.37773]
[1726461128302,4.31542834,2284.6,2284.2,4.37773]
[1726461129575,4.31542834,2284.6,2284.3,4.3777]
[1726461129989,4.31542834,2284.6,2284.3,4.37757]
[1726461131616,4.31542834,2284.6,2284.1,12.02576767]
[1726461131617,8.69261834,2284.6,2284.1,12.02576767]
[1726461131785,2.2766,2284.4,2284.0,4.37815]
[1726461131990,4.1132778,2284.4,2284.0,4.37815]
[1726461132298,0.13876876,2284.3,2284.1,4.37805]
[1726461141832,0.13876876,2284.3,2284.0,4.37815]
[1726461142133,2.4752,2284.2,2283.9,4.37847]
[1726461142425,0.1384544,2284.1,2284.0,4.37827]
[1726461143088,0.1384544,2284.1,2283.8,11.8166903]
[1726461143089,0.39981984,2284.1,2283.8,0.0381403]
[1726461143322,2.439,2283.9,2283.8,0.0381403]
[1726461143621,2.5774002,2283.9,2283.8,0.0381403]
[1726461144028,6.9558702,2283.9,2283.8,0.0381403]
[1726461144639,2.5774002,2283.9,2283.8,0.0381403]
[1726461149615,6.9558702,2283.9,2283.8,0.0381403]
[1726461149813,9.03691254,2283.9,2283.8,0.0381403]
[1726461151452,4.65844254,2283.9,2283.8,0.0381403]
[1726461151618,2.5774002,2283.9,2283.8,0.0381403]
[1726461153749,6.9558702,2283.9,2283.8,0.0381403]
[1726461159689,11.3343402,2283.9,2283.8,0.0381403]
[1726461172882,6.9558702,2283.9,2283.8,0.0381403]
[1726461175390,4.5168702,2283.9,2283.8,0.0381403]
[1726461177295,6.14441054,2283.9,2283.8,0.0381403]
[1726461178527,4.5168702,2283.9,2283.8,0.0381403]
[1726461185003,6.353548,2283.9,2283.8,0.0381403]
[1726461185200,5.89626921,2283.9,2283.8,0.0381403]
[1726461185425,6.353548,2283.9,2283.8,0.0381403]
[1726461187340,6.81471942,2283.9,2283.8,0.0381403]
[1726461187639,4.5168702,2283.9,2283.8,0.0381403]
[1726461187860,6.81839094,2283.9,2283.8,0.0381403]
[1726461189562,2.43992094,2283.9,2283.8,0.0381403]
[1726461189732,2.44197963,2283.9,2283.8,0.0381403]
[1726461192334,2.44203764,2283.9,2283.8,0.0381403]
[1726461199247,2.44223695,2283.9,2283.8,0.0381403]
[1726461202472,2.44220898,2283.9,2283.8,0.0381403]
[1726461202818,1.38221884,2284.1,2284.0,8.75656]
[1726461203025,2.76457054,2284.6,2284.4,2.344]
[1726461203026,1.38221884,2284.5,2284.4,2.344]
[1726461203365,1.38167499,2284.6,2284.5,4.37732]
[1726461203546,1.84295905,2284.7,2284.5,5.76797982]
[1726461203939,1.84295905,2284.6,2284.3,4.37758]
[1726461204136,1.84242091,2284.6,2284.3,4.37758]
[1726461205368,1.84242091,2284.6,2284.5,4.37732]
[1726461205655,1.84242091,2284.7,2284.5,6.80502]
[1726461205858,1.84242091,2284.7,2284.6,5.43483867]
[1726461206071,1.84242091,2284.7,2284.6,7.25715535]
[1726461206843,1.84242091,2284.7,2284.6,5.43483867]
[1726461207438,1.84242091,2284.8,2284.6,7.25715535]
[1726461207679,1.84242091,2284.8,2284.7,5.16319387]
[1726461208162,1.97113438,2284.8,2284.7,5.16319387]
[1726461208668,0.12871347,2284.8,2284.7,14.42458561]
[1726461209031,1.84242091,2285.2,2285.0,4.37636]
[1726461209268,1.84242091,2285.2,2285.0,6.19867668]
[1726461209428,1.97219871,2285.1,2285.0,6.19867668]
[1726461209627,1.84242091,2285.1,2285.0,6.19867668]
[1726461209863,1.97219871,2285.1,2285.0,6.19867668]
[1726461210942,1.97219871,2285.1,2285.0,6.70988076]
[1726461213773,0.1297778,2285.1,2285.0,6.70988076]
[1726461213937,8.50045091,2285.5,2285.0,6.70988076]
[1726461214143,0.1297778,2285.4,2285.0,4.37636]
[1726461215733,0.1297778,2285.4,2285.0,4.37626]
[1726461218875,0.1297778,2285.4,2285.0,6.85666]
[1726461219806,0.1297778,2285.4,2285.0,8.67897668]
[1726461220102,0.1297778,2285.4,2285.1,5.25272981]
[1726461222297,0.1297778,2285.4,2285.1,0.87664981]
[1726461222495,0.1297778,2285.4,2285.0,8.67895668]
[1726461222897,0.1297778,2285.4,2285.0,4.37624]
[1726461224406,0.1297778,2285.4,2285.0,8.75251]
[1726461224561,0.1297778,2285.4,2285.0,4.37624]
[1726461225286,0.1297778,2285.4,2285.0,5.6891484]
[1726461229604,4.5053778,2285.4,2285.0,5.6891484]
[1726461229811,4.5053778,2285.4,2285.0,4.37624]
[1726461233805,2.4492,2285.3,2285.0,4.37624]
[1726461234115,0.13096101,2285.2,2284.9,4.37655]
[1726461234435,2.4492,2285.3,2284.9,4.37655]
[1726461234652,0.13096101,2285.1,2284.9,4.37655]
[1726461234936,6.825,2285.3,2284.8,13.04195668]
[1726461235133,0.13096101,2285.0,2284.9,4.37655]
[1726461235345,6.825,2285.3,2284.9,4.37655]
[1726461235840,0.13099355,2285.2,2284.9,4.37655]
[1726461236206,6.825,2285.3,2284.9,4.37655]
[1726461236543,0.13099355,2285.1,2285.0,6.19866668]
[1726461236705,9.81442,2285.5,2285.0,6.19866668]
[1726461236906,0.13099355,2285.1,2285.0,6.19866668]
[1726461237222,0.13099355,2285.1,2285.0,7.66369596]
[1726461237543,9.81442,2285.5,2285.0,7.66369596]
[1726461237705,0.13099355,2285.1,2285.0,6.19866668]
[1726461237908,9.81442,2285.5,2285.0,6.19866668]
[1726461238126,0.13099355,2285.1,2285.0,6.19866668]
[1726461238312,9.81442,2285.5,2285.0,4.37635]
[1726461238545,1.84242091,2285.2,2285.0,5.68926976]
[1726461238857,0.13099355,2285.1,2285.0,4.37635]
[1726461239874,0.13099355,2285.1,2284.9,4.37655]
[1726461240734,1.97341446,2285.1,2284.6,7.60684851]
[1726461240951,1.97341446,2285.1,2284.7,5.36387261]
[1726461241285,1.97341446,2285.1,2284.7,6.19913668]
[1726461241484,1.97341446,2285.1,2284.7,8.5147217]
[1726461241778,1.97341446,2285.1,2284.8,4.37674]
[1726461249611,1.97341446,2285.1,2284.7,8.4273133]
[1726461250794,2.3422,2285.0,2284.7,8.4273133]
[1726461251329,0.13076565,2284.9,2284.7,8.4273133]
[1726461252304,0.13076565,2284.9,2284.7,6.60499662]
[1726461253625,0.13076565,2284.9,2284.7,8.4273133]
[1726461253775,0.13076565,2284.9,2284.8,1.51150133]
[1726461253972,0.13076565,2284.9,2284.8,5.88825133]
[1726461254411,1.84242091,2285.1,2284.8,5.88825133]
[1726461254819,0.13076565,2285.0,2284.8,5.88825133]
[1726461256300,4.11912091,2285.2,2284.8,5.88825133]
[1726461256500,0.13073309,2284.9,2284.8,5.88825133]
[1726461256698,4.11912091,2285.2,2284.8,5.88825133]
[1726461256902,0.13073309,2284.9,2284.8,4.37675]
[1726461257100,4.11912091,2285.2,2284.8,4.37675]
[1726461257413,0.13073309,2284.9,2284.8,4.37675]
[1726461258004,4.11912091,2285.2,2284.8,4.37675]
[1726461258206,0.13083077,2284.9,2284.8,5.89689119]
[1726461258692,4.11912091,2285.2,2284.8,5.89689119]
[1726461258899,0.13083077,2284.9,2284.8,5.89689119]
[1726461259116,4.11912091,2285.2,2284.8,5.89689119]
[1726461259412,0.13083077,2284.9,2284.8,5.89689119]
[1726461259617,4.11912091,2285.2,2284.8,5.89689119]
[1726461259819,0.13083077,2284.9,2284.8,5.89689119]
[1726461260037,4.11912091,2285.2,2284.8,5.89689119]
[1726461260177,0.13083077,2284.9,2284.8,5.89689119]
[1726461260508,4.11912091,2285.2,2284.9,4.37644]
[1726461260706,4.11912091,2285.2,2284.9,5.80885045]
[1726461261512,2.2767,2285.2,2284.9,5.80885045]
[1726461261725,2.2767,2285.2,2284.9,4.37644]
[1726461269916,2.2767,2285.2,2284.9,8.75289]
[1726461270118,2.2767,2285.2,2284.9,4.37644]
[1726461270309,1.84242091,2285.3,2285.0,4.37627]
[1726461270508,1.84242091,2285.3,2285.0,5.48978321]
[1726461271635,0.13077652,2285.2,2285.0,5.48978321]
[1726461271937,1.84242091,2285.3,2285.0,5.48978321]
[1726461272135,0.13077652,2285.1,2285.0,5.48978321]
[1726461272338,1.84242091,2285.3,2285.0,5.48978321]
[1726461272523,0.13077652,2285.1,2285.0,5.48978321]
[1726461272708,1.84242091,2285.3,2285.0,5.48978321]
[1726461273033,0.13077652,2285.1,2285.0,5.48978321]
[1726461273331,1.84242091,2285.3,2285.1,4.37615]
[1726461273694,1.84242091,2285.3,2285.2,4.37598]
[1726461274307,1.84242091,2285.3,2285.1,11.97286867]
[1726461275030,1.84242091,2285.3,2285.1,11.97278867]
[1726461275236,1.84242091,2285.3,2285.1,7.59671867]
[1726461275529,1.84242091,2285.3,2285.2,0.75967187]
[1726461276330,1.84242091,2285.3,2285.2,7.53175187]
[1726461277063,4.26622091,2285.6,2285.2,7.53175187]
[1726461277267,1.84242091,2285.5,2285.2,7.53175187]
[1726461277776,1.84242091,2285.5,2285.3,1.37301086]
[1726461278273,4.26622091,2285.6,2285.3,1.37301086]
[1726461279378,1.84242091,2285.6,2285.5,4.37541]
[1726461279673,1.84242091,2285.8,2285.6,4.37521]
[1726461280172,2.29964796,2285.9,2285.6,4.37521]
[1726461280173,1.84242091,2285.7,2285.6,4.37521]
[1726461280379,1.84242091,2285.8,2285.6,5.67100367]
[1726461282991,2.4151,2285.7,2285.6,1.29579367]
[1726461283139,2.4151,2285.7,2285.4,4.37553]
[1726461286678,0.13086332,2285.6,2285.4,4.37553]
[1726461288667,0.13086332,2285.6,2285.3,8.75129]
[1726461288881,0.13086332,2285.6,2285.4,4.37558]
[1726461290673,0.13086332,2285.6,2285.2,2.3594]
[1726461290674,0.13086332,2285.6,2285.2,6.73528]
[1726461291043,0.13086332,2285.6,2285.3,4.37578]
[1726461291201,0.13086332,2285.6,2285.3,5.66914667]
[1726461291996,0.13086332,2285.6,2285.3,7.49146335]
[1726461292794,0.13086332,2285.6,2285.3,7.49136335]
[1726461293811,0.13086332,2285.6,2285.3,11.86707335]
[1726461294153,0.13086332,2285.6,2285.3,7.49135335]
[1726461294382,0.13086332,2285.6,2285.4,4.3756]
[1726461298364,0.13086332,2285.6,2285.5,6.19772668]
[1726461298580,4.27142091,2285.9,2285.5,8.57482668]
[1726461298787,0.1317965,2285.6,2285.5,8.66232577]
[1726461298986,2.429,2285.9,2285.5,10.08190391]
[1726461299187,0.1317965,2285.6,2285.5,10.08190391]
[1726461299388,2.429,2285.9,2285.5,10.08190391]
[1726461299588,0.1317965,2285.6,2285.5,10.08190391]
[1726461299789,2.429,2285.9,2285.5,10.08190391]
[1726461299991,0.1317965,2285.6,2285.5,10.08190391]
[1726461300294,2.429,2285.9,2285.6,4.37517]
[1726461300497,2.429,2285.9,2285.7,1.44570739]
[1726461300716,2.429,2285.9,2285.6,4.37517]
[1726461301585,2.429,2285.9,2285.7,4.375]
[1726461301781,0.13190497,2285.8,2285.6,4.3752]
[1726461302334,0.13190497,2285.8,2285.6,5.67020467]
[1726461302730,0.13190497,2285.8,2285.6,1.29500467]
[1726461302915,0.13190497,2285.8,2285.5,8.57473668]
[1726461303321,0.13190497,2285.8,2285.5,8.66223543]
[1726461303619,0.13190497,2285.8,2285.6,4.3752]
[1726461307161,0.13190497,2285.8,2285.4,4.37543]
[1726461307380,0.13190497,2285.8,2285.4,8.75093]
[1726461307734,0.13190497,2285.8,2285.5,4.37539]
[1726461310467,0.13190497,2285.8,2285.4,4.37543]
[1726461310674,0.13190497,2285.8,2285.5,4.37539]
[1726461312543,2.3248,2285.7,2285.5,4.37539]
[1726461312877,2.45697616,2285.7,2285.5,4.37539]
[1726461314420,2.45697616,2285.7,2285.5,5.67881367]
[1726461321183,2.45697616,2285.7,2285.5,1.30342367]
[1726461321519,2.45697616,2285.7,2285.4,8.75094]
[1726461322018,2.45697616,2285.7,2285.4,8.75093]
[1726461322589,2.45697616,2285.7,2285.4,8.75094]
[1726461323216,0.13217616,2285.7,2285.4,8.75094]
[1726461323418,1.84242091,2285.8,2285.4,8.75094]
[1726461323615,0.13217616,2285.6,2285.5,1.30343567]
[1726461323788,1.84242091,2285.8,2285.5,1.30343567]
[1726461324307,0.13217616,2285.7,2285.5,1.30343567]
[1726461324514,1.84242091,2285.8,2285.5,1.30343567]
[1726461324714,0.13217616,2285.7,2285.4,8.75094]
[1726461325030,1.84242091,2285.8,2285.4,8.75094]
[1726461325189,0.13217616,2285.6,2285.4,8.75094]
[1726461325393,1.84242091,2285.8,2285.4,8.75094]
[1726461325602,0.13217616,2285.5,2285.4,4.37543]
[1726461325819,1.84242091,2285.8,2285.4,5.67888967]
[1726461326004,0.13217616,2285.5,2285.4,5.76638878]
[1726461326215,1.84242091,2285.8,2285.4,5.76638878]
[1726461326416,0.13217616,2285.5,2285.4,5.67888967]
[1726461326909,8.47499091,2285.9,2285.4,5.67888967]
[1726461327109,0.13217616,2285.8,2285.4,4.37543]
[1726461328007,1.97459707,2285.8,2285.4,4.37543]
[1726461328833,6.34943707,2285.8,2285.4,4.37543]
[1726461329049,4.50701616,2285.8,2285.4,4.37543]
[1726461329265,6.34943707,2285.8,2285.4,4.37543]
[1726461329762,1.97459707,2285.8,2285.4,4.37543]
[1726461330260,6.34942707,2285.8,2285.4,4.37543]
[1726461330466,4.37532,2285.6,2285.1,11.1527]
[1726461330672,3.00677409,2285.5,2285.1,4.37603]
[1726461330960,0.13217616,2285.4,2285.1,10.57440668]
[1726461331533,0.13217616,2285.4,2285.1,6.19834668]
[1726461331739,0.13217616,2285.4,2285.1,10.57441668]
[1726461331942,0.13217616,2285.4,2285.1,13.1372622]
[1726461333169,0.13217616,2285.4,2285.2,4.37591]
[1726461336412,0.13217616,2285.4,2285.3,1.82231668]
[1726461336564,1.84242091,2285.6,2285.3,1.82231668]
[1726461336764,0.13201346,2285.4,2285.3,1.82231668]
[1726461337061,1.84242091,2285.6,2285.3,3.11762235]
[1726461337278,0.13201346,2285.4,2285.3,1.82231668]
[1726461337469,8.69683091,2285.7,2285.3,1.82231668]
[1726461337663,0.13201346,2285.4,2285.3,1.82231668]
[1726461337869,8.69683091,2285.7,2285.3,3.11762235]
[1726461338197,8.69683091,2285.7,2285.3,1.82231668]
[1726461338511,6.67418551,2285.8,2285.5,6.19772668]
[1726461338512,0.13201346,2285.6,2285.5,6.19772668]
[1726461338811,2.75907061,2286.1,2285.8,4.37475]
[1726461338812,1.84242091,2286.0,2285.8,4.37475]
[1726461339100,1.84242091,2286.1,2285.9,1.82231668]
[1726461340227,1.84242091,2286.3,2286.0,4.37444]
[1726461340379,1.84242091,2286.3,2285.9,2.68322035]
[1726461340582,4.65892551,2286.4,2285.9,1.82231668]
[1726461340583,4.20212091,2286.4,2285.9,1.82231668]
[1726461340897,1.84242091,2286.2,2285.8,4.37472]
[1726461341108,4.37407,2286.2,2285.7,6.19729668]
[1726461341265,1.84242091,2286.2,2285.8,4.37481]
[1726461341468,1.84242091,2286.2,2285.7,1.82231668]
[1726461341469,2.3597,2286.1,2285.7,6.19723668]
[1726461342382,2.3597,2286.1,2285.7,7.68454449]
[1726461346695,2.3597,2286.1,2285.8,4.37478]
[1726461346901,0.13277268,2286.0,2285.7,12.05946449]
[1726461347213,0.13277268,2286.0,2285.8,1.45029645]
[1726461347415,0.13277268,2286.0,2285.8,5.82502645]
[1726461348315,0.13277268,2286.0,2285.9,6.19695668]
[1726461348673,2.4067,2286.3,2285.9,6.19695668]
[1726461349215,0.13276183,2286.2,2285.9,4.37464]
[1726461349419,2.4067,2286.3,2285.9,4.37464]
[1726461349574,0.13276183,2286.1,2285.8,4.37473]
[1726461349775,2.4067,2286.3,2285.8,4.37473]
[1726461349776,8.62303091,2286.3,2285.8,4.37473]
[1726461349975,0.13276183,2286.0,2285.8,5.67629167]
[1726461350269,6.78061,2286.3,2285.8,5.67629167]
[1726461350623,6.78061,2286.3,2285.8,4.37473]
[1726461350912,0.13276183,2286.2,2285.8,4.37473]
[1726461351312,6.78061,2286.3,2285.8,4.37473]
[1726461351691,0.13276183,2286.2,2285.8,4.37473]
[1726461351888,0.13276183,2286.2,2285.8,5.67628567]
[1726461352125,6.78061,2286.3,2285.8,5.67628567]
[1726461352530,0.13276183,2286.2,2285.8,5.76377059]
[1726461352897,6.78061,2286.3,2285.8,5.76377059]
[1726461353103,6.78061,2286.3,2285.8,5.67628567]
[1726461353397,0.13276183,2286.2,2285.8,5.76377051]
[1726461353610,6.78061,2286.3,2285.8,5.76377051]
[1726461353818,0.13276183,2286.1,2285.8,5.76377051]
[1726461354016,6.78061,2286.3,2285.9,1.19610972]
[1726461354233,0.13276183,2286.0,2285.9,1.19610972]
[1726461354397,6.78061,2286.3,2285.9,1.19610972]
[1726461354740,6.78061,2286.3,2285.8,4.46221485]
[1726461355105,0.13276183,2286.2,2285.8,0.08748485]
[1726461355339,2.4067,2286.3,2285.9,4.37463]
[1726461355519,0.13276183,2286.2,2285.9,6.79963]
[1726461355719,2.4067,2286.3,2285.9,9.93030083]
[1726461355921,2.4067,2286.3,2285.9,8.62185668]
[1726461356122,0.13276183,2286.2,2285.9,12.99639668]
[1726461356323,2.4067,2286.3,2286.0,4.4619216]
[1726461356637,0.13276183,2286.2,2286.0,5.68269783]
[1726461356817,8.55996121,2286.5,2286.0,5.68269783]
[1726461357009,0.13276183,2286.1,2286.0,4.37432]
[1726461357348,12.93360121,2286.5,2286.0,4.37432]
[1726461357711,0.13276183,2286.4,2286.0,4.37432]
[1726461360746,2.3237,2286.2,2285.8,4.37472]
[1726461360954,0.1329028,2286.1,2285.8,4.37472]
[1726461362437,0.1329028,2286.1,2285.7,4.37502]
[1726461362641,2.4037,2286.0,2285.6,4.37506]
[1726461362826,2.4037,2286.0,2285.6,8.75014]
[1726461363024,0.1329028,2285.9,2285.7,4.37499]
[1726461364157,0.1329028,2285.9,2285.4,11.77547]
[1726461364320,4.37503,2285.7,2285.2,6.19815668]
[1726461364513,4.37503,2285.7,2285.2,7.66750252]
[1726461364713,2.401,2285.5,2285.2,3.29166252]
[1726461364907,2.401,2285.5,2285.2,1.82231668]
[1726461365148,0.13281604,2285.4,2285.2,1.82231668]
[1726461366525,0.13281604,2285.4,2285.2,6.19813668]
[1726461366847,8.62750091,2285.8,2285.3,4.46329654]
[1726461366848,2.4102,2285.8,2285.3,4.46329654]
[1726461367154,2.4102,2285.8,2285.5,1.82231668]
[1726461367652,6.78505,2285.8,2285.5,1.82231668]
[1726461368149,6.78505,2285.8,2285.3,1.90982322]
[1726461368716,6.78505,2285.8,2285.5,1.82231668]
[1726461368717,2.4102,2285.8,2285.5,1.82231668]
[1726461369036,6.78504,2285.8,2285.5,1.82231668]
[1726461374518,2.4102,2285.8,2285.5,6.19771668]
[1726461376555,1.84242091,2286.1,2285.7,8.56542668]
[1726461376859,4.14942091,2286.4,2286.0,6.19675668]
[1726461377063,4.14942091,2286.4,2286.2,1.82231668]
[1726461377064,2.307,2286.4,2286.2,1.82231668]
[1726461377354,0.0381403,2286.5,2286.2,6.19627668]
[1726461377665,0.0381403,2286.5,2286.0,13.02666434]
[1726461377828,0.0381403,2286.5,2286.1,5.05721077]
[1726461378650,2.3839,2286.4,2286.0,4.37433]
[1726461378852,2.3839,2286.4,2286.0,6.19664668]
[1726461379723,2.3839,2286.4,2286.0,10.57099668]
[1726461379924,2.3839,2286.4,2286.0,12.39821839]
[1726461381729,2.3839,2286.4,2286.0,8.02386839]
[1726461382051,2.3839,2286.4,2286.0,12.39821839]
[1726461382553,2.3839,2286.4,2286.0,8.02386839]
[1726461382733,2.3839,2286.4,2286.0,12.39820839]
[1726461383270,2.3839,2286.4,2286.0,12.39819839]
[1726461383726,2.3839,2286.4,2286.0,12.39820839]
[1726461384259,2.3839,2286.4,2286.0,12.39821839]
[1726461384429,2.3839,2286.4,2286.1,1.23982084]
[1726461384630,2.3839,2286.4,2286.0,10.57099668]
[1726461384959,2.3839,2286.4,2286.0,10.57098668]
[1726461385534,6.75771,2286.4,2285.8,7.61383267]
[1726461385773,6.75391,2286.3,2285.8,4.37479]
[1726461386968,6.75437,2286.1,2285.7,7.4]
[1726461387174,2.38,2286.1,2285.7,1.82231668]
[1726461387382,2.38,2286.1,2285.7,6.19731668]
[1726461390267,1.112772,2286.2,2285.8,4.37477]
[1726461390424,6.87114,2286.3,2285.9,1.82231668]
[1726461391361,4.37411,2286.2,2285.9,1.82231668]
[1726461391868,0.13285943,2286.1,2285.9,1.82231668]
[1726461392777,11.24508,2286.3,2285.9,1.82231668]
[1726461392943,0.13285943,2286.2,2286.1,6.19648668]
[1726461393279,6.7529403,2286.5,2286.1,1.82231668]
[1726461393485,0.13268593,2286.2,2286.1,1.82231668]
[1726461393639,6.7529403,2286.5,2286.1,1.82231668]
[1726461393845,0.13268593,2286.2,2286.1,1.82231668]
[1726461394377,6.7529403,2286.5,2286.1,1.82231668]
[1726461394580,0.13268593,2286.4,2286.1,6.19654668]
[1726461395759,0.13268593,2286.4,2285.9,8.48214668]
[1726461395967,2.3408,2286.3,2285.8,6.71572]
[1726461396172,2.3408,2286.3,2286.0,4.37444]
[1726461396364,0.13268593,2286.2,2286.0,4.37444]
[1726461396670,2.3408,2286.3,2286.0,4.37444]
[1726461396886,2.3408,2286.3,2285.8,6.71572]
[1726461396887,0.13268593,2286.1,2285.8,6.71572]
[1726461397192,0.13288113,2286.0,2285.8,4.37472]
[1726461397352,11.83286919,2286.3,2285.8,4.37472]
[1726461397659,2.3057,2286.1,2285.7,6.19732668]
[1726461398246,0.13288113,2286.0,2285.8,4.37482]
[1726461399876,0.13288113,2286.0,2285.7,1.82231668]
[1726461403393,0.13288113,2286.0,2285.6,4.37508]
[1726461403558,0.13288113,2286.0,2285.7,4.37501]
[1726461403999,0.13288113,2286.0,2285.7,6.19732668]
[1726461406556,4.37499,2285.8,2285.3,7.4]
[1726461406763,2.4928,2285.7,2285.3,9.22231668]
[1726461406991,0.1325558,2285.6,2285.3,15.22660475]
[1726461407213,0.1325558,2285.6,2285.4,4.37555]
[1726461407365,0.1325558,2285.6,2285.3,7.82660475]
[1726461407574,0.1325558,2285.6,2285.5,1.82231668]
[1726461409878,0.1325558,2285.6,2285.4,1.82231668]
[1726461410712,0.1325558,2285.6,2285.2,6.19828668]
[1726461410865,2.4793,2285.5,2285.2,6.19828668]
[1726461411412,0.1325558,2285.4,2285.2,6.19828668]
[1726461413463,0.1325558,2285.4,2285.3,4.37579]
[1726461414201,0.1325558,2285.4,2285.2,6.19828668]
[1726461416419,0.1325558,2285.4,2285.2,6.19820668]
[1726461418416,0.1325558,2285.4,2285.2,10.57409668]
[1726461419125,0.1325558,2285.4,2285.2,6.19820668]
[1726461421397,0.1325558,2285.4,2285.2,10.57409668]
[1726461422086,0.1325558,2285.4,2285.2,6.19820668]
[1726461423522,0.1325558,2285.4,2285.2,10.57410668]
[1726461424032,0.1325558,2285.4,2285.3,4.37579]
[1726461424687,2.2653,2285.7,2285.3,4.37579]
[1726461424887,0.1322304,2285.4,2285.2,8.63748668]
[1726461425189,6.64035,2285.7,2285.3,4.37569]
[1726461425190,2.2653,2285.7,2285.3,4.37569]
[1726461425396,2.2653,2285.7,2285.4,1.82231668]
[1726461425616,2.4052,2285.9,2285.6,1.82231668]
[1726461425927,0.74610491,2285.9,2285.6,4.09481668]
[1726461426100,2.3304,2286.1,2285.8,1.82231668]
[1726461426302,2.3304,2286.1,2285.8,2.23179835]
[1726461426517,2.3304,2286.1,2285.8,1.82231668]
[1726461428021,4.37382,2286.4,2285.8,1.82231668]
[1726461428223,2.3304,2286.4,2285.8,1.82231668]
[1726461428739,2.3304,2286.4,2286.0,4.37435]
[1726461428911,4.15563611,2286.4,2286.0,4.37435]
[1726461431145,8.52932611,2286.4,2285.9,2.4336]
[1726461431357,10.37174702,2286.4,2285.8,6.19695668]
[1726461431505,1.04098873,2286.3,2285.8,6.19695668]
[1726461431926,1.04098873,2286.3,2285.9,4.37454]
[1726461433924,4.37409,2286.2,2285.6,11.7751]
[1726461434144,4.37409,2286.2,2285.7,4.37485]
[1726461434145,2.2905,2286.1,2285.7,4.37485]
[1726461434745,2.2905,2286.1,2285.8,4.37483]
[1726461435065,2.2905,2286.1,2285.8,8.74946]
[1726461435358,2.2905,2286.1,2285.8,4.37473]
[1726461436657,0.13284861,2286.0,2285.8,4.37473]
[1726461439983,0.13284861,2286.0,2285.8,8.74947]
[1726461440645,0.13284861,2286.0,2285.8,4.37473]
[1726461441497,0.13284861,2286.0,2285.8,8.74947]
[1726461446051,0.13284861,2286.0,2285.9,4.37464]
[1726461448649,0.13284861,2286.0,2285.8,4.3747]
[1726461449259,0.13284861,2286.0,2285.8,8.74937]
[1726461449588,0.37518347,2286.0,2285.8,8.74941]
[1726461450090,0.37518347,2286.0,2285.8,4.37467]
[1726461452896,0.13284861,2286.0,2285.8,4.37467]
[1726461453289,0.13284861,2286.0,2285.9,4.37464]
[1726461453666,2.4301,2286.3,2285.9,4.37464]
[1726461453866,0.13284861,2286.0,2285.9,4.37464]
[1726461454095,2.4301,2286.3,2285.9,4.37464]
[1726461454297,0.13284861,2286.0,2285.9,4.37464]
[1726461454597,2.4301,2286.3,2285.9,4.37464]
[1726461455201,0.13284861,2286.2,2285.9,4.37464]
[1726461455605,2.4301,2286.3,2285.9,4.37464]
[1726461455778,0.13284861,2286.1,2285.9,4.37464]
[1726461455968,4.14805807,2286.3,2285.9,4.37464]
[1726461456170,0.13284861,2286.0,2285.9,4.37464]
[1726461456370,4.14805807,2286.3,2285.9,4.37464]
[1726461456875,0.13290281,2286.2,2285.9,4.37464]
[1726461457107,4.14805807,2286.3,2285.9,4.37464]
[1726461457411,0.13290281,2286.1,2285.9,4.37464]
[1726461457566,4.14805807,2286.3,2285.9,4.37464]
[1726461457903,2.4301,2286.3,2286.0,6.68006]
[1726461458467,2.4301,2286.3,2286.1,4.37422]
[1726461459113,2.4301,2286.3,2286.0,6.68006]
[1726461459266,2.4301,2286.3,2286.0,11.0544]
[1726461460003,2.4301,2286.3,2286.0,6.68004]
[1726461462318,2.4301,2286.3,2286.0,11.05438]
[1726461462627,2.4301,2286.3,2286.0,4.37434]
[1726461463683,2.4301,2286.3,2286.0,8.7487]
[1726461463955,2.4301,2286.3,2286.0,4.37434]
[1726461465026,2.4301,2286.3,2286.0,8.74868]
[1726461466728,0.13293534,2286.2,2286.0,8.74868]
[1726461466911,2.4301,2286.3,2286.0,8.74868]
[1726461467087,2.4301,2286.3,2286.1,4.37425]
[1726461468130,2.4301,2286.3,2286.0,8.74867]
[1726461468530,2.4301,2286.3,2286.1,4.37424]
[1726461468731,1.84242091,2286.4,2286.2,4.37406]
[1726461468943,4.16896121,2286.5,2286.2,4.37396]
[1726461469094,0.0381403,2286.5,2286.3,6.19610668]
[1726461469292,0.0381403,2286.5,2286.4,4.37368]
[1726461469494,0.0381403,2286.5,2286.3,7.47890335]
[1726461472733,0.0381403,2286.5,2286.1,6.632]
[1726461472734,0.0381403,2286.5,2286.2,4.37403]
[1726461473833,2.4191,2286.4,2286.2,4.37403]
[1726461480316,0.0381403,2286.5,2286.2,4.37407]
[1726461480480,0.0381403,2286.5,2286.2,6.82397]
[1726461481825,0.13308716,2286.4,2286.2,6.82397]
[1726461482623,0.13308716,2286.4,2286.3,4.37387]
[1726461502825,2.3798,2286.3,2286.2,4.37404]